[Event "Titled Tuesday Blitz June 6 Early 2023"]
[White "Guerra Tulcan, Lenin"]
[Black "Tejedor Fuente, Enrique"]
[WhiteFideId "3601382"]
[BlackFideId "2299100"]
[WhiteElo "2368"]
[BlackElo "2496"]
[Result "1-0"]
[Round "4"]
[TimeControl "180+2"]
[Date "2023.06.06"]
[WhiteClock "0:00:23"]
[BlackClock "0:00:01"]
[Board "46"]

1. e4 {[%clk 0:03:00]}  d6 {[%clk 0:02:55]} 2. d4 {[%clk 0:03:00]}  Nf6 {[%clk 0:02:52]} 3. Nc3 {[%clk 0:02:59]}  e5 {[%clk 0:02:46]} 4. Nf3 {[%clk 0:02:59]}  Nbd7 {[%clk 0:02:45]} 5. dxe5 {[%clk 0:02:58]}  dxe5 {[%clk 0:02:44]} 6. Bc4 {[%clk 0:02:59]}  Bb4 {[%clk 0:02:38]} 7. O-O {[%clk 0:02:56]}  O-O {[%clk 0:02:29]} 8. Nd5 {[%clk 0:02:56]}  Nxd5 {[%clk 0:02:27]} 9. Bxd5 {[%clk 0:02:56]}  c6 {[%clk 0:02:26]} 10. Bb3 {[%clk 0:02:56]}  a5 {[%clk 0:02:25]} 11. Bg5 {[%clk 0:02:56]}  Be7 {[%clk 0:02:24]} 12. Bxe7 {[%clk 0:02:54]}  Qxe7 {[%clk 0:02:25]} 13. a4 {[%clk 0:02:52]}  Nc5 {[%clk 0:02:24]} 14. Qe2 {[%clk 0:02:52]}  Bg4 {[%clk 0:02:23]} 15. h3 {[%clk 0:02:48]}  Bh5 {[%clk 0:02:23]} 16. Bc4 {[%clk 0:02:49]}  Kh8 {[%clk 0:02:13]} 17. Qe3 {[%clk 0:02:48]}  f6 {[%clk 0:02:10]} 18. Nh4 {[%clk 0:02:40]}  Rfd8 {[%clk 0:01:49]} 19. Nf5 {[%clk 0:02:37]}  Qf8 {[%clk 0:01:49]} 20. g4 {[%clk 0:02:31]}  Be8 {[%clk 0:01:45]} 21. Rfd1 {[%clk 0:02:31]}  b6 {[%clk 0:01:42]} 22. b3 {[%clk 0:02:27]}  g6 {[%clk 0:01:33]} 23. Ng3 {[%clk 0:02:26]}  Bf7 {[%clk 0:01:27]} 24. Be2 {[%clk 0:02:07]}  Qe7 {[%clk 0:01:21]} 25. Rxd8+ {[%clk 0:02:04]}  Rxd8 {[%clk 0:01:20]} 26. Rd1 {[%clk 0:02:04]}  Rxd1+ {[%clk 0:01:19]} 27. Bxd1 {[%clk 0:02:04]}  Qd6 {[%clk 0:01:19]} 28. Be2 {[%clk 0:02:04]}  Kg7 {[%clk 0:01:19]} 29. h4 {[%clk 0:02:01]}  Qd8 {[%clk 0:01:15]} 30. h5 {[%clk 0:01:55]}  Ne6 {[%clk 0:01:14]} 31. Qd3 {[%clk 0:01:42]}  Qe7 {[%clk 0:01:07]} 32. Qa6 {[%clk 0:01:31]}  Qc7 {[%clk 0:01:05]} 33. Qa8 {[%clk 0:01:29]}  Nf4 {[%clk 0:00:39]} 34. h6+ {[%clk 0:01:22]}  Kxh6 {[%clk 0:00:39]} 35. Qh8 {[%clk 0:01:22]}  Qe7 {[%clk 0:00:34]} 36. Bf3 {[%clk 0:01:09]}  Ne6 {[%clk 0:00:33]} 37. Qc8 {[%clk 0:01:03]}  Qc7 {[%clk 0:00:30]} 38. Qh8 {[%clk 0:01:00]}  Qd8 {[%clk 0:00:27]} 39. g5+ {[%clk 0:00:54]}  fxg5 {[%clk 0:00:16]} 40. Qxe5 {[%clk 0:00:54]}  Qd4 {[%clk 0:00:12]} 41. Qb8 {[%clk 0:00:54]}  Qd8 {[%clk 0:00:10]} 42. Qe5 {[%clk 0:00:53]}  Qd4 {[%clk 0:00:10]} 43. Qb8 {[%clk 0:00:53]}  Qf6 {[%clk 0:00:10]} 44. Bg2 {[%clk 0:00:46]}  Qd8 {[%clk 0:00:09]} 45. Qe5 {[%clk 0:00:46]}  Qd4 {[%clk 0:00:10]} 46. Qb8 {[%clk 0:00:45]}  Nf4 {[%clk 0:00:09]} 47. Qf8+ {[%clk 0:00:44]}  Qg7 {[%clk 0:00:09]} 48. Qd6 {[%clk 0:00:39]}  Qa1+ {[%clk 0:00:10]} 49. Kh2 {[%clk 0:00:38]}  Be6 {[%clk 0:00:07]} 50. Bf3 {[%clk 0:00:30]}  Qf6 {[%clk 0:00:05]} 51. Qxc6 {[%clk 0:00:27]}  Qe5 {[%clk 0:00:05]} 52. Qxb6 {[%clk 0:00:26]}  g4 {[%clk 0:00:05]} 53. Bg2 {[%clk 0:00:25]}  Qg5 {[%clk 0:00:04]} 54. Qe3 {[%clk 0:00:25]}  Qh4+ {[%clk 0:00:04]} 55. Kg1 {[%clk 0:00:26]}  Qg5 {[%clk 0:00:04]} 56. Ne2 {[%clk 0:00:25]}  Nxe2+ {[%clk 0:00:04]} 57. Qxe2 {[%clk 0:00:26]}  Qc1+ {[%clk 0:00:04]} 58. Kh2 {[%clk 0:00:26]}  Kg7 {[%clk 0:00:04]} 59. Kg3 {[%clk 0:00:25]}  Qg5 {[%clk 0:00:03]} 60. Qe3 {[%clk 0:00:25]}  Qe5+ {[%clk 0:00:04]} 61. Qf4 {[%clk 0:00:25]}  Qc3+ {[%clk 0:00:04]} 62. Kh2 {[%clk 0:00:24]}  Qxc2 {[%clk 0:00:04]} 63. Qe5+ {[%clk 0:00:24]}  Kf7 {[%clk 0:00:05]} 64. Qxa5 {[%clk 0:00:25]}  Qxb3 {[%clk 0:00:05]} 65. Qc7+ {[%clk 0:00:25]}  Kg8 {[%clk 0:00:05]} 66. a5 {[%clk 0:00:25]}  h5 {[%clk 0:00:04]} 67. a6 {[%clk 0:00:25]}  h4 {[%clk 0:00:04]} 68. a7 {[%clk 0:00:25]}  g3+ {[%clk 0:00:04]} 69. fxg3 {[%clk 0:00:25]}  hxg3+ {[%clk 0:00:05]} 70. Qxg3 {[%clk 0:00:26]}  Qa3 {[%clk 0:00:01]} 71. Qb8+ {[%clk 0:00:26]}  Kh7 {[%clk 0:00:02]} 72. a8=Q {[%clk 0:00:26]}  Qc3 {[%clk 0:00:02]} 73. Qg3 {[%clk 0:00:24]}  g5 {[%clk 0:00:01]} 74. Qxc3 {[%clk 0:00:23]} 1-0


[Site "https://www.chess.com"]

[Event "Titled Tuesday Blitz June 6 Early 2023"]
[White "Maximov, Dmitry"]
[Black "Terletsky, Oleg"]
[WhiteFideId "14105659"]
[BlackFideId "14116774"]
[WhiteElo "2494"]
[BlackElo "2126"]
[Result "0-1"]
[Round "4"]
[TimeControl "180+2"]
[Date "2023.06.06"]
[WhiteClock "0:00:12"]
[BlackClock "0:00:03"]
[Board "47"]

1. e4 {[%clk 0:03:00]}  e5 {[%clk 0:02:59]} 2. Nf3 {[%clk 0:03:01]}  Nc6 {[%clk 0:02:59]} 3. Bb5 {[%clk 0:03:01]}  a6 {[%clk 0:02:59]} 4. Ba4 {[%clk 0:03:02]}  Nf6 {[%clk 0:02:59]} 5. O-O {[%clk 0:03:02]}  Be7 {[%clk 0:02:59]} 6. Re1 {[%clk 0:03:03]}  b5 {[%clk 0:03:00]} 7. Bb3 {[%clk 0:03:03]}  d6 {[%clk 0:03:00]} 8. c3 {[%clk 0:03:03]}  O-O {[%clk 0:03:00]} 9. h3 {[%clk 0:03:03]}  Bb7 {[%clk 0:03:00]} 10. d3 {[%clk 0:03:03]}  Na5 {[%clk 0:02:59]} 11. Bc2 {[%clk 0:03:04]}  c5 {[%clk 0:02:59]} 12. Nbd2 {[%clk 0:03:04]}  Re8 {[%clk 0:02:59]} 13. Qe2 {[%clk 0:03:03]}  Bf8 {[%clk 0:02:59]} 14. Nf1 {[%clk 0:03:04]}  d5 {[%clk 0:02:59]} 15. Ng3 {[%clk 0:03:04]}  d4 {[%clk 0:02:58]} 16. cxd4 {[%clk 0:02:58]}  cxd4 {[%clk 0:02:56]} 17. Bd2 {[%clk 0:02:54]}  Rc8 {[%clk 0:02:47]} 18. Rac1 {[%clk 0:02:54]}  Qb6 {[%clk 0:02:41]} 19. Nh2 {[%clk 0:02:49]}  b4 {[%clk 0:02:38]} 20. Bg5 {[%clk 0:02:36]}  h6 {[%clk 0:02:14]} 21. Bxf6 {[%clk 0:02:34]}  Qxf6 {[%clk 0:02:15]} 22. Ng4 {[%clk 0:02:34]}  Qe6 {[%clk 0:01:54]} 23. Ba4 {[%clk 0:02:23]}  Red8 {[%clk 0:01:38]} 24. Nf5 {[%clk 0:02:17]}  h5 {[%clk 0:01:34]} 25. Nxe5 {[%clk 0:01:33]}  Qxe5 {[%clk 0:01:35]} 26. Qxh5 {[%clk 0:01:33]}  Qf6 {[%clk 0:00:52]} 27. Ng3 {[%clk 0:01:01]}  Nc6 {[%clk 0:00:42]} 28. Bb3 {[%clk 0:00:53]}  g6 {[%clk 0:00:38]} 29. Qe2 {[%clk 0:00:51]}  Bh6 {[%clk 0:00:35]} 30. Rc4 {[%clk 0:00:47]}  a5 {[%clk 0:00:27]} 31. e5 {[%clk 0:00:47]}  Qe7 {[%clk 0:00:14]} 32. Qg4 {[%clk 0:00:36]}  Kh7 {[%clk 0:00:11]} 33. e6 {[%clk 0:00:33]}  f5 {[%clk 0:00:10]} 34. Nxf5 {[%clk 0:00:33]}  gxf5 {[%clk 0:00:11]} 35. Qxf5+ {[%clk 0:00:34]}  Kh8 {[%clk 0:00:11]} 36. Re4 {[%clk 0:00:31]}  Rg8 {[%clk 0:00:09]} 37. Rc5 {[%clk 0:00:27]}  Qg7 {[%clk 0:00:09]} 38. g3 {[%clk 0:00:27]}  Ne7 {[%clk 0:00:09]} 39. Qf7 {[%clk 0:00:15]}  Rxc5 {[%clk 0:00:09]} 40. Rh4 {[%clk 0:00:14]}  Rc1+ {[%clk 0:00:07]} 41. Kh2 {[%clk 0:00:12]}  Rh1# {[%clk 0:00:03]} 0-1


[Site "https://www.chess.com"]

[Event "Titled Tuesday Blitz June 6 Early 2023"]
[White "splendidkid"]
[Black "Moral Garcia, Serafin"]
[BlackFideId "2201925"]
[WhiteElo "2764"]
[BlackElo "2274"]
[Result "1/2-1/2"]
[Round "4"]
[TimeControl "180+2"]
[Date "2023.06.06"]
[WhiteClock "0:00:47"]
[BlackClock "0:00:16"]
[Board "48"]

1. d4 {[%clk 0:02:56]}  Nf6 {[%clk 0:02:59]} 2. c4 {[%clk 0:02:56]}  g6 {[%clk 0:02:59]} 3. Nf3 {[%clk 0:02:56]}  Bg7 {[%clk 0:02:57]} 4. Nc3 {[%clk 0:02:57]}  d5 {[%clk 0:02:58]} 5. Bg5 {[%clk 0:02:55]}  Ne4 {[%clk 0:02:57]} 6. Bf4 {[%clk 0:02:55]}  Nxc3 {[%clk 0:02:55]} 7. bxc3 {[%clk 0:02:56]}  c5 {[%clk 0:02:55]} 8. e3 {[%clk 0:02:56]}  Nc6 {[%clk 0:02:49]} 9. cxd5 {[%clk 0:02:56]}  Qxd5 {[%clk 0:02:48]} 10. Be2 {[%clk 0:02:56]}  cxd4 {[%clk 0:02:48]} 11. cxd4 {[%clk 0:02:57]}  O-O {[%clk 0:02:47]} 12. O-O {[%clk 0:02:57]}  Bf5 {[%clk 0:02:43]} 13. Qa4 {[%clk 0:02:57]}  Qa5 {[%clk 0:02:40]} 14. Qb3 {[%clk 0:02:57]}  Qb4 {[%clk 0:02:39]} 15. Rfc1 {[%clk 0:02:57]}  Qxb3 {[%clk 0:02:34]} 16. axb3 {[%clk 0:02:57]}  Be4 {[%clk 0:02:24]} 17. Nd2 {[%clk 0:02:42]}  Bd5 {[%clk 0:02:22]} 18. Bc4 {[%clk 0:02:42]}  Rfd8 {[%clk 0:02:22]} 19. Nf3 {[%clk 0:02:38]}  Rac8 {[%clk 0:02:13]} 20. h3 {[%clk 0:02:26]}  a6 {[%clk 0:02:11]} 21. Nd2 {[%clk 0:02:16]}  e5 {[%clk 0:01:33]} 22. dxe5 {[%clk 0:02:17]}  Bxe5 {[%clk 0:01:29]} 23. Bxe5 {[%clk 0:02:13]}  Nxe5 {[%clk 0:01:27]} 24. Bxd5 {[%clk 0:02:13]}  Rxc1+ {[%clk 0:01:26]} 25. Rxc1 {[%clk 0:02:14]}  Rxd5 {[%clk 0:01:27]} 26. Ne4 {[%clk 0:02:13]}  Rb5 {[%clk 0:01:20]} 27. Rc8+ {[%clk 0:02:03]}  Kg7 {[%clk 0:01:18]} 28. Nc5 {[%clk 0:02:04]}  a5 {[%clk 0:01:07]} 29. f4 {[%clk 0:01:58]}  Nc6 {[%clk 0:01:01]} 30. Nxb7 {[%clk 0:01:58]}  Rxb7 {[%clk 0:01:00]} 31. Rxc6 {[%clk 0:01:58]}  Rxb3 {[%clk 0:01:00]} 32. Kf2 {[%clk 0:01:59]}  a4 {[%clk 0:00:55]} 33. Ra6 {[%clk 0:02:00]}  a3 {[%clk 0:00:56]} 34. Kf3 {[%clk 0:01:59]}  h5 {[%clk 0:00:55]} 35. g4 {[%clk 0:01:59]}  hxg4+ {[%clk 0:00:54]} 36. hxg4 {[%clk 0:02:00]}  Kf8 {[%clk 0:00:51]} 37. Ra7 {[%clk 0:02:00]}  Kg7 {[%clk 0:00:51]} 38. g5 {[%clk 0:01:59]}  Rc3 {[%clk 0:00:50]} 39. Ke4 {[%clk 0:02:00]}  Rb3 {[%clk 0:00:50]} 40. Kd4 {[%clk 0:02:00]}  Kf8 {[%clk 0:00:47]} 41. e4 {[%clk 0:01:59]}  Kg7 {[%clk 0:00:43]} 42. f5 {[%clk 0:01:53]}  gxf5 {[%clk 0:00:37]} 43. exf5 {[%clk 0:01:54]}  Rb5 {[%clk 0:00:35]} 44. Ke4 {[%clk 0:01:52]}  Rb4+ {[%clk 0:00:34]} 45. Ke5 {[%clk 0:01:52]}  Rb5+ {[%clk 0:00:35]} 46. Kf4 {[%clk 0:01:52]}  Rb4+ {[%clk 0:00:35]} 47. Kf3 {[%clk 0:01:52]}  Rb5 {[%clk 0:00:33]} 48. Kg4 {[%clk 0:01:53]}  Rb3 {[%clk 0:00:32]} 49. Kh4 {[%clk 0:01:48]}  Kf8 {[%clk 0:00:29]} 50. Kh5 {[%clk 0:01:45]}  Rh3+ {[%clk 0:00:28]} 51. Kg4 {[%clk 0:01:43]}  Rb3 {[%clk 0:00:28]} 52. f6 {[%clk 0:01:39]}  Kg8 {[%clk 0:00:28]} 53. Ra8+ {[%clk 0:01:39]}  Kh7 {[%clk 0:00:28]} 54. Rf8 {[%clk 0:01:37]}  Rb7 {[%clk 0:00:28]} 55. Ra8 {[%clk 0:01:24]}  Rb3 {[%clk 0:00:27]} 56. Kh4 {[%clk 0:01:24]}  Kg6 {[%clk 0:00:26]} 57. Rg8+ {[%clk 0:01:24]}  Kf5 {[%clk 0:00:26]} 58. Ra8 {[%clk 0:01:22]}  Kg6 {[%clk 0:00:25]} 59. Ra4 {[%clk 0:01:20]}  Rc3 {[%clk 0:00:23]} 60. Kg4 {[%clk 0:01:19]}  Rb3 {[%clk 0:00:23]} 61. Kf4 {[%clk 0:01:20]}  Rc3 {[%clk 0:00:22]} 62. Ra5 {[%clk 0:01:19]}  Rb3 {[%clk 0:00:21]} 63. Kg4 {[%clk 0:01:15]}  Rb4+ {[%clk 0:00:21]} 64. Kf3 {[%clk 0:01:15]}  Rb3+ {[%clk 0:00:21]} 65. Ke4 {[%clk 0:01:16]}  Rb4+ {[%clk 0:00:21]} 66. Ke3 {[%clk 0:01:16]}  Rb3+ {[%clk 0:00:21]} 67. Ke4 {[%clk 0:01:17]}  Rb4+ {[%clk 0:00:21]} 68. Kf3 {[%clk 0:01:15]}  Rb3+ {[%clk 0:00:21]} 69. Ke2 {[%clk 0:01:12]}  Rg3 {[%clk 0:00:20]} 70. Kf2 {[%clk 0:01:11]}  Rxg5 {[%clk 0:00:20]} 71. Rxa3 {[%clk 0:01:11]}  Kxf6 {[%clk 0:00:20]} 72. Kf3 {[%clk 0:01:11]}  Rc5 {[%clk 0:00:20]} 73. Ke4 {[%clk 0:01:10]}  Kg6 {[%clk 0:00:19]} 74. Kd4 {[%clk 0:01:09]}  Rg5 {[%clk 0:00:19]} 75. Ke4 {[%clk 0:01:09]}  f5+ {[%clk 0:00:19]} 76. Ke5 {[%clk 0:01:10]}  Rg4 {[%clk 0:00:18]} 77. Re3 {[%clk 0:01:05]}  Kg5 {[%clk 0:00:19]} 78. Re1 {[%clk 0:01:05]}  f4 {[%clk 0:00:18]} 79. Rf1 {[%clk 0:01:01]}  Rh4 {[%clk 0:00:16]} 80. Ke4 {[%clk 0:01:01]}  Rg4 {[%clk 0:00:16]} 81. Ra1 {[%clk 0:01:00]}  Rg2 {[%clk 0:00:16]} 82. Ra8 {[%clk 0:00:52]}  Re2+ {[%clk 0:00:16]} 83. Kf3 {[%clk 0:00:52]}  Re3+ {[%clk 0:00:17]} 84. Kf2 {[%clk 0:00:52]}  Kg4 {[%clk 0:00:17]} 85. Rg8+ {[%clk 0:00:52]}  Kf5 {[%clk 0:00:17]} 86. Rf8+ {[%clk 0:00:53]}  Kg4 {[%clk 0:00:18]} 87. Rg8+ {[%clk 0:00:53]}  Kf5 {[%clk 0:00:18]} 88. Rf8+ {[%clk 0:00:54]}  Kg4 {[%clk 0:00:19]} 89. Ra8 {[%clk 0:00:53]}  Rc3 {[%clk 0:00:18]} 90. Rg8+ {[%clk 0:00:52]}  Kf5 {[%clk 0:00:18]} 91. Ke2 {[%clk 0:00:51]}  Rc2+ {[%clk 0:00:16]} 92. Kd3 {[%clk 0:00:50]}  Rh2 {[%clk 0:00:16]} 93. Kd4 {[%clk 0:00:47]}  f3 {[%clk 0:00:15]} 94. Ke3 {[%clk 0:00:46]}  f2 {[%clk 0:00:15]} 95. Ke2 {[%clk 0:00:47]}  Kf4 {[%clk 0:00:15]} 96. Kf1 {[%clk 0:00:47]}  Kf3 {[%clk 0:00:15]} 97. Rf8+ {[%clk 0:00:47]}  Ke3 {[%clk 0:00:15]} 98. Re8+ {[%clk 0:00:47]}  Kf3 {[%clk 0:00:15]} 99. Rf8+ {[%clk 0:00:46]}  Ke3 {[%clk 0:00:15]} 100. Re8+ {[%clk 0:00:47]}  Kf3 {[%clk 0:00:16]} 101. Rf8+ {[%clk 0:00:47]} 1/2-1/2


[Site "https://www.chess.com"]

[Event "Titled Tuesday Blitz June 6 Early 2023"]
[White "Sokolovsky, Yahli"]
[Black "Hajiyev, Kanan"]
[WhiteFideId "2820242"]
[BlackFideId "13404148"]
[WhiteElo "2389"]
[BlackElo "2115"]
[Result "1-0"]
[Round "4"]
[TimeControl "180+2"]
[Date "2023.06.06"]
[WhiteClock "0:00:13"]
[BlackClock "0:00:09"]
[Board "49"]

1. b3 {[%clk 0:03:00]}  a5 {[%clk 0:02:55]} 2. Bb2 {[%clk 0:03:01]}  a4 {[%clk 0:02:56]} 3. b4 {[%clk 0:03:02]}  e6 {[%clk 0:02:52]} 4. a3 {[%clk 0:03:03]}  Nf6 {[%clk 0:02:52]} 5. c4 {[%clk 0:03:00]}  d5 {[%clk 0:02:52]} 6. c5 {[%clk 0:03:01]}  d4 {[%clk 0:02:47]} 7. Nf3 {[%clk 0:02:54]}  Nc6 {[%clk 0:02:41]} 8. b5 {[%clk 0:02:46]}  Na5 {[%clk 0:02:41]} 9. Qxa4 {[%clk 0:02:47]}  Bxc5 {[%clk 0:02:35]} 10. Nxd4 {[%clk 0:02:22]}  O-O {[%clk 0:02:18]} 11. e3 {[%clk 0:02:19]}  Bd7 {[%clk 0:01:58]} 12. Qc2 {[%clk 0:02:18]}  b6 {[%clk 0:01:48]} 13. Bd3 {[%clk 0:02:17]}  e5 {[%clk 0:01:34]} 14. Nf5 {[%clk 0:02:17]}  Re8 {[%clk 0:01:09]} 15. Ng3 {[%clk 0:01:16]}  e4 {[%clk 0:01:00]} 16. Nxe4 {[%clk 0:01:09]}  Nxe4 {[%clk 0:01:00]} 17. Bxe4 {[%clk 0:01:10]}  Bxb5 {[%clk 0:00:58]} 18. d4 {[%clk 0:00:46]}  Bd6 {[%clk 0:00:33]} 19. Nd2 {[%clk 0:00:46]}  Qg5 {[%clk 0:00:28]} 20. Bxa8 {[%clk 0:00:22]}  Rxa8 {[%clk 0:00:29]} 21. Qe4 {[%clk 0:00:14]}  Bc6 {[%clk 0:00:25]} 22. Qd3 {[%clk 0:00:11]}  Qxg2 {[%clk 0:00:18]} 23. O-O-O {[%clk 0:00:11]}  Qd5 {[%clk 0:00:19]} 24. e4 {[%clk 0:00:09]}  Qa2 {[%clk 0:00:19]} 25. Qb1 {[%clk 0:00:10]}  Nb3+ {[%clk 0:00:15]} 26. Nxb3 {[%clk 0:00:04]}  Qxb3 {[%clk 0:00:16]} 27. Qc2 {[%clk 0:00:04]}  Qxc2+ {[%clk 0:00:16]} 28. Kxc2 {[%clk 0:00:05]}  Bxe4+ {[%clk 0:00:16]} 29. Kb3 {[%clk 0:00:05]}  Bd5+ {[%clk 0:00:15]} 30. Kc2 {[%clk 0:00:05]}  Bxh1 {[%clk 0:00:15]} 31. Rxh1 {[%clk 0:00:06]}  b5 {[%clk 0:00:11]} 32. Kb3 {[%clk 0:00:04]}  Kf8 {[%clk 0:00:08]} 33. Re1 {[%clk 0:00:02]}  Bxh2 {[%clk 0:00:07]} 34. Rh1 {[%clk 0:00:02]}  Bd6 {[%clk 0:00:07]} 35. Rxh7 {[%clk 0:00:03]}  Kg8 {[%clk 0:00:08]} 36. Rh1 {[%clk 0:00:03]}  Re8 {[%clk 0:00:08]} 37. Bc1 {[%clk 0:00:03]}  Re2 {[%clk 0:00:07]} 38. Be3 {[%clk 0:00:03]}  f6 {[%clk 0:00:04]} 39. Rh5 {[%clk 0:00:03]}  c6 {[%clk 0:00:03]} 40. Rh1 {[%clk 0:00:04]}  g5 {[%clk 0:00:03]} 41. Rc1 {[%clk 0:00:05]}  c5 {[%clk 0:00:01]} 42. dxc5 {[%clk 0:00:05]}  Bc7 {[%clk 0:00:02]} 43. c6 {[%clk 0:00:05]}  Kf7 {[%clk 0:00:03]} 44. Rc5 {[%clk 0:00:05]}  Ke6 {[%clk 0:00:03]} 45. Rxb5 {[%clk 0:00:06]}  Re1 {[%clk 0:00:03]} 46. Rb7 {[%clk 0:00:05]}  Rb1+ {[%clk 0:00:04]} 47. Kc2 {[%clk 0:00:06]}  Rxb7 {[%clk 0:00:05]} 48. cxb7 {[%clk 0:00:07]}  Bb8 {[%clk 0:00:05]} 49. a4 {[%clk 0:00:06]}  Kd7 {[%clk 0:00:06]} 50. a5 {[%clk 0:00:07]}  Kc6 {[%clk 0:00:07]} 51. a6 {[%clk 0:00:08]}  g4 {[%clk 0:00:06]} 52. a7 {[%clk 0:00:05]}  Bxa7 {[%clk 0:00:06]} 53. Bxa7 {[%clk 0:00:06]}  Kxb7 {[%clk 0:00:07]} 54. Bd4 {[%clk 0:00:06]}  f5 {[%clk 0:00:08]} 55. Be5 {[%clk 0:00:03]}  Kc6 {[%clk 0:00:09]} 56. Kd3 {[%clk 0:00:04]}  Kd5 {[%clk 0:00:09]} 57. Bf4 {[%clk 0:00:04]}  Kc5 {[%clk 0:00:07]} 58. Ke3 {[%clk 0:00:05]}  Kd5 {[%clk 0:00:05]} 59. Bg3 {[%clk 0:00:05]}  Ke6 {[%clk 0:00:03]} 60. Kf4 {[%clk 0:00:06]}  Kf6 {[%clk 0:00:04]} 61. Bh4+ {[%clk 0:00:07]}  Kg6 {[%clk 0:00:04]} 62. Bd8 {[%clk 0:00:07]}  Kh5 {[%clk 0:00:03]} 63. Kxf5 {[%clk 0:00:06]}  g3 {[%clk 0:00:03]} 64. fxg3 {[%clk 0:00:07]}  Kh6 {[%clk 0:00:04]} 65. g4 {[%clk 0:00:08]}  Kg7 {[%clk 0:00:05]} 66. g5 {[%clk 0:00:08]}  Kf7 {[%clk 0:00:05]} 67. Ba5 {[%clk 0:00:09]}  Kg7 {[%clk 0:00:06]} 68. Be1 {[%clk 0:00:09]}  Kg8 {[%clk 0:00:07]} 69. Bg3 {[%clk 0:00:10]}  Kg7 {[%clk 0:00:08]} 70. g6 {[%clk 0:00:11]}  Kg8 {[%clk 0:00:08]} 71. Kf6 {[%clk 0:00:11]}  Kf8 {[%clk 0:00:08]} 72. g7+ {[%clk 0:00:12]}  Kg8 {[%clk 0:00:09]} 73. Be1 {[%clk 0:00:12]}  Kh7 {[%clk 0:00:09]} 74. Kf7 {[%clk 0:00:13]}  Kh6 {[%clk 0:00:09]} 75. g8=Q {[%clk 0:00:13]}  Kh5 {[%clk 0:00:09]} 76. Qg6# {[%clk 0:00:13]} 1-0


[Site "https://www.chess.com"]

[Event "Titled Tuesday Blitz June 6 Early 2023"]
[White "Djordjevic, Vuk"]
[Black "Liu, Casper"]
[WhiteFideId "902098"]
[BlackFideId "1454153"]
[WhiteElo "2463"]
[BlackElo "2221"]
[Result "1-0"]
[Round "4"]
[TimeControl "180+2"]
[Date "2023.06.06"]
[WhiteClock "0:00:06"]
[BlackClock "0:01:02"]
[Board "51"]

1. d4 {[%clk 0:03:00]}  Nf6 {[%clk 0:02:56]} 2. Bg5 {[%clk 0:03:01]}  h6 {[%clk 0:02:52]} 3. Bxf6 {[%clk 0:03:00]}  exf6 {[%clk 0:02:53]} 4. c4 {[%clk 0:03:00]}  Bb4+ {[%clk 0:02:52]} 5. Nc3 {[%clk 0:03:00]}  O-O {[%clk 0:02:53]} 6. e3 {[%clk 0:03:00]}  d5 {[%clk 0:02:53]} 7. Qb3 {[%clk 0:02:53]}  Nc6 {[%clk 0:02:53]} 8. cxd5 {[%clk 0:02:51]}  Bxc3+ {[%clk 0:02:53]} 9. bxc3 {[%clk 0:02:47]}  Ne7 {[%clk 0:02:54]} 10. c4 {[%clk 0:02:45]}  Re8 {[%clk 0:02:54]} 11. Nf3 {[%clk 0:02:44]}  c6 {[%clk 0:02:50]} 12. dxc6 {[%clk 0:02:38]}  Nxc6 {[%clk 0:02:49]} 13. Qc3 {[%clk 0:02:33]}  Bg4 {[%clk 0:02:50]} 14. d5 {[%clk 0:02:19]}  Ne5 {[%clk 0:02:30]} 15. Nxe5 {[%clk 0:02:13]}  Rxe5 {[%clk 0:02:30]} 16. Bd3 {[%clk 0:02:11]}  Rc8 {[%clk 0:02:26]} 17. Qb4 {[%clk 0:01:49]}  f5 {[%clk 0:02:15]} 18. O-O {[%clk 0:01:48]}  Qh4 {[%clk 0:01:59]} 19. Qxb7 {[%clk 0:01:06]}  f4 {[%clk 0:01:58]} 20. f3 {[%clk 0:01:07]}  Rh5 {[%clk 0:01:51]} 21. exf4 {[%clk 0:00:27]}  Qxh2+ {[%clk 0:01:30]} 22. Kf2 {[%clk 0:00:27]}  Qxf4 {[%clk 0:01:31]} 23. Qxa7 {[%clk 0:00:07]}  Re8 {[%clk 0:01:16]} 24. Rae1 {[%clk 0:00:07]}  Rhe5 {[%clk 0:01:01]} 25. Rxe5 {[%clk 0:00:06]}  Rxe5 {[%clk 0:01:02]} 26. Qa8+ {[%clk 0:00:06]} 1-0


[Site "https://www.chess.com"]

[Event "Titled Tuesday Blitz June 6 Early 2023"]
[White "qx4z"]
[Black "Jaskolka, Tomasz"]
[BlackFideId "1170791"]
[WhiteElo "2745"]
[BlackElo "2155"]
[Result "1-0"]
[Round "4"]
[TimeControl "180+2"]
[Date "2023.06.06"]
[WhiteClock "0:00:47"]
[BlackClock "0:00:13"]
[Board "53"]

1. d4 {[%clk 0:03:00]}  d5 {[%clk 0:02:59]} 2. Bf4 {[%clk 0:03:01]}  c6 {[%clk 0:02:53]} 3. e3 {[%clk 0:02:59]}  Nf6 {[%clk 0:02:53]} 4. c4 {[%clk 0:02:58]}  a6 {[%clk 0:02:49]} 5. Nc3 {[%clk 0:02:56]}  Bf5 {[%clk 0:02:49]} 6. Qb3 {[%clk 0:02:55]}  Ra7 {[%clk 0:02:49]} 7. Nf3 {[%clk 0:02:31]}  e6 {[%clk 0:02:49]} 8. c5 {[%clk 0:02:30]}  Be7 {[%clk 0:02:37]} 9. h3 {[%clk 0:02:30]}  h6 {[%clk 0:02:36]} 10. Be2 {[%clk 0:02:28]}  Nbd7 {[%clk 0:02:36]} 11. O-O {[%clk 0:02:28]}  O-O {[%clk 0:02:36]} 12. a4 {[%clk 0:02:14]}  Ne4 {[%clk 0:02:29]} 13. a5 {[%clk 0:02:10]}  Nxc3 {[%clk 0:02:29]} 14. bxc3 {[%clk 0:02:10]}  f6 {[%clk 0:02:17]} 15. Bh2 {[%clk 0:02:07]}  e5 {[%clk 0:02:14]} 16. Bd1 {[%clk 0:02:06]}  Bd3 {[%clk 0:02:11]} 17. Re1 {[%clk 0:02:04]}  Bc4 {[%clk 0:02:11]} 18. Qb2 {[%clk 0:02:04]}  Qe8 {[%clk 0:02:01]} 19. Be2 {[%clk 0:02:02]}  Bxe2 {[%clk 0:01:57]} 20. Qxe2 {[%clk 0:02:03]}  Qh5 {[%clk 0:01:50]} 21. Rab1 {[%clk 0:01:46]}  Bd8 {[%clk 0:01:39]} 22. Qa2 {[%clk 0:01:42]}  Qf7 {[%clk 0:01:31]} 23. Rb2 {[%clk 0:01:41]}  Bc7 {[%clk 0:01:30]} 24. Reb1 {[%clk 0:01:28]}  Rb8 {[%clk 0:01:30]} 25. Nd2 {[%clk 0:01:22]}  Kh8 {[%clk 0:01:18]} 26. c4 {[%clk 0:01:03]}  dxc4 {[%clk 0:00:35]} 27. Nxc4 {[%clk 0:01:04]}  Nf8 {[%clk 0:00:26]} 28. dxe5 {[%clk 0:01:02]}  fxe5 {[%clk 0:00:26]} 29. Nxe5 {[%clk 0:01:02]}  Qxa2 {[%clk 0:00:23]} 30. Rxa2 {[%clk 0:01:03]}  Kg8 {[%clk 0:00:21]} 31. Rab2 {[%clk 0:00:53]}  Re8 {[%clk 0:00:15]} 32. Nc4 {[%clk 0:00:49]}  Bxh2+ {[%clk 0:00:14]} 33. Kxh2 {[%clk 0:00:50]}  Re7 {[%clk 0:00:14]} 34. Nd6 {[%clk 0:00:50]}  Ne6 {[%clk 0:00:13]} 35. Nxb7 {[%clk 0:00:51]}  Rd7 {[%clk 0:00:11]} 36. Rb6 {[%clk 0:00:50]}  Rc7 {[%clk 0:00:10]} 37. f4 {[%clk 0:00:46]}  Kf8 {[%clk 0:00:08]} 38. f5 {[%clk 0:00:47]}  Ng5 {[%clk 0:00:08]} 39. Nd6 {[%clk 0:00:47]}  Ke7 {[%clk 0:00:07]} 40. Rb8 {[%clk 0:00:47]}  Kf6 {[%clk 0:00:08]} 41. Ne8+ {[%clk 0:00:44]}  Kxf5 {[%clk 0:00:08]} 42. Nxc7 {[%clk 0:00:45]}  Rxc7 {[%clk 0:00:08]} 43. Re8 {[%clk 0:00:45]}  Ne4 {[%clk 0:00:07]} 44. Rf1+ {[%clk 0:00:46]}  Kg6 {[%clk 0:00:07]} 45. Rxe4 {[%clk 0:00:46]}  Rb7 {[%clk 0:00:08]} 46. Re6+ {[%clk 0:00:47]}  Kh7 {[%clk 0:00:09]} 47. Rxc6 {[%clk 0:00:48]}  Rb4 {[%clk 0:00:10]} 48. Rxa6 {[%clk 0:00:48]}  Rb5 {[%clk 0:00:10]} 49. Rb6 {[%clk 0:00:49]}  Rxc5 {[%clk 0:00:11]} 50. a6 {[%clk 0:00:49]}  Ra5 {[%clk 0:00:12]} 51. Rf7 {[%clk 0:00:50]}  h5 {[%clk 0:00:12]} 52. a7 {[%clk 0:00:50]}  h4 {[%clk 0:00:13]} 53. Rb8 {[%clk 0:00:50]}  Rg5 {[%clk 0:00:12]} 54. a8=Q {[%clk 0:00:49]}  Kg6 {[%clk 0:00:13]} 55. Qc6+ {[%clk 0:00:47]}  Kh5 {[%clk 0:00:13]} 56. Rh8# {[%clk 0:00:47]} 1-0


[Site "https://www.chess.com"]